[Event "FIDE U16 Olympiad_boards_1-80"]
[Site "Eindhoven, Netherlands"]
[Date "2023.08.14"]
[Round "3.69"]
[White "Simpson, Michael"]
[Black "Sadekov, Maksim"]
[Result "1-0"]
[TimeControl "2700+10"]
[WhiteElo "1909"]
[BlackElo "2107"]

1. d4 {[%clk 00:45:18]} {[%emt 00:00:01]} e6 {[%clk 00:45:14]} {[%emt
00:00:06]} 2. c4 {[%clk 00:45:25]} {[%emt 00:00:03]} f5 {[%clk 00:45:21]}
{[%emt 00:00:02]} 3. g3 {[%clk 00:45:33]} {[%emt 00:00:03]} Nf6 {[%clk
00:45:29]} {[%emt 00:00:02]} 4. Bg2 {[%clk 00:45:41]} {[%emt 00:00:02]} c6
{[%clk 00:45:34]} {[%emt 00:00:05]} 5. Nf3 {[%clk 00:45:28]} {[%emt 00:00:23]}
d5 {[%clk 00:45:43]} {[%emt 00:00:02]} 6. Bf4 {[%clk 00:45:17]} {[%emt
00:00:21]} Bd6 {[%clk 00:45:37]} {[%emt 00:00:15]} 7. Bxd6 {[%clk 00:44:08]}
{[%emt 00:01:19]} Qxd6 {[%clk 00:45:40]} {[%emt 00:00:07]} 8. O-O {[%clk
00:44:03]} {[%emt 00:00:16]} Nbd7 {[%clk 00:45:48]} {[%emt 00:00:01]} 9. Qc2
{[%clk 00:43:32]} {[%emt 00:00:40]} Ne4 {[%clk 00:45:53]} {[%emt 00:00:06]} 10.
Nc3 {[%clk 00:43:21]} {[%emt 00:00:21]} O-O {[%clk 00:45:57]} {[%emt 00:00:05]}
11. Rad1 {[%clk 00:43:28]} {[%emt 00:00:05]} b6 {[%clk 00:45:46]} {[%emt
00:00:20]} 12. Rfe1 {[%clk 00:37:40]} {[%emt 00:05:57]} Ba6 {[%clk 00:37:35]}
{[%emt 00:08:22]} 13. cxd5 {[%clk 00:36:56]} {[%emt 00:00:55]} exd5 {[%clk
00:37:39]} {[%emt 00:00:05]} 14. e3 {[%clk 00:36:08]} {[%emt 00:00:58]} Bb7
{[%clk 00:36:49]} {[%emt 00:01:00]} 15. Ne2 {[%clk 00:36:05]} {[%emt 00:00:13]}
Rf6 {[%clk 00:28:50]} {[%emt 00:08:09]} 16. Nf4 {[%clk 00:35:09]} {[%emt
00:01:06]} g5 {[%clk 00:13:21]} {[%emt 00:15:40]} 17. Nd3 {[%clk 00:35:16]}
{[%emt 00:00:02]} Raf8 {[%clk 00:13:27]} {[%emt 00:00:04]} 18. Nfe5 {[%clk
00:34:39]} {[%emt 00:00:47]} Re6 {[%clk 00:06:52]} {[%emt 00:06:45]} 19. Qa4
{[%clk 00:31:40]} {[%emt 00:03:10]} a5 {[%clk 00:04:27]} {[%emt 00:02:34]} 20.
Rc1 {[%clk 00:29:39]} {[%emt 00:02:12]} Nef6 {[%clk 00:02:00]} {[%emt
00:02:37]} 21. Bh3 {[%clk 00:27:14]} {[%emt 00:02:34]} g4 {[%clk 00:00:12]}
{[%emt 00:01:59]} 22. Bg2 {[%clk 00:27:21]} {[%emt 00:00:02]} h5 {[%clk
00:00:12]} {[%emt 00:00:10]} 23. Nf4 {[%clk 00:27:16]} {[%emt 00:00:15]} Rxe5
{[%clk 00:00:14]} {[%emt 00:00:08]} 24. dxe5 {[%clk 00:27:24]} {[%emt
00:00:03]} Nxe5 {[%clk 00:00:22]} {[%emt 00:00:02]} 25. Qb3 {[%clk 00:27:08]}
{[%emt 00:00:25]} b5 {[%clk 00:00:14]} {[%emt 00:00:19]} 26. Qc3 {[%clk
00:26:20]} {[%emt 00:00:58]} a4 {[%clk 00:00:12]} {[%emt 00:00:12]} 27. Red1
{[%clk 00:24:57]} {[%emt 00:01:33]} Rf7 {[%clk 00:00:13]} {[%emt 00:00:09]} 28.
Qc2 {[%clk 00:24:06]} {[%emt 00:01:01]} Bc8 {[%clk 00:00:12]} {[%emt 00:00:11]}
29. Nxd5 {[%clk 00:23:19]} {[%emt 00:00:57]} Nxd5 {[%clk 00:00:17]} {[%emt
00:00:05]} 30. Bxd5 {[%clk 00:23:17]} {[%emt 00:00:11]} cxd5 {[%clk 00:00:12]}
{[%emt 00:00:15]} 31. Qxc8+ {[%clk 00:23:25]} {[%emt 00:00:02]} Kg7 {[%clk
00:00:21]} 32. Qc5 {[%clk 00:23:07]} {[%emt 00:00:28]} Nf3+ {[%clk 00:00:20]}
{[%emt 00:00:11]} 33. Kg2 {[%clk 00:23:12]} {[%emt 00:00:05]} Qf6 {[%clk
00:00:13]} {[%emt 00:00:17]} 34. Qc3 {[%clk 00:22:11]} {[%emt 00:01:12]} d4
{[%clk 00:00:12]} {[%emt 00:00:11]} 35. exd4 {[%clk 00:22:14]} {[%emt
00:00:06]} Re7 {[%clk 00:00:12]} {[%emt 00:00:11]} 36. d5 {[%clk 00:22:02]}
{[%emt 00:00:21]} Re5 {[%clk 00:00:20]} {[%emt 00:00:01]} 37. d6 {[%clk
00:22:05]} {[%emt 00:00:08]} h4 {[%clk 00:00:17]} {[%emt 00:00:14]} 38. d7
{[%clk 00:22:10]} {[%emt 00:00:05]} h3+ {[%clk 00:00:24]} {[%emt 00:00:03]} 39.
Kh1 {[%clk 00:22:16]} {[%emt 00:00:03]} b4 {[%clk 00:00:12]} {[%emt 00:00:23]}
40. Qc7 {[%clk 00:21:34]} {[%emt 00:00:51]} Re7 {[%clk 00:00:11]} {[%emt
00:00:11]} 41. d8=Q {[%clk 00:21:38]} {[%emt 00:00:07]} 1-0

[Event "FIDE U16 Olympiad_boards_1-80"]
[Site "Eindhoven, Netherlands"]
[Date "2023.08.14"]
[Round "3.70"]
[White "Pedmanson, Albert"]
[Black "Soojay, Jorah"]
[Result "1-0"]
[TimeControl "2700+10"]
[WhiteElo "1882"]
[BlackElo "1566"]

1. d4 {[%clk 00:45:18]} {[%emt 00:00:02]} Nf6 {[%clk 00:45:18]} {[%emt
00:00:03]} 2. Nf3 {[%clk 00:45:23]} {[%emt 00:00:04]} d5 {[%clk 00:45:23]}
{[%emt 00:00:05]} 3. Bf4 {[%clk 00:45:30]} {[%emt 00:00:03]} e6 {[%clk
00:45:02]} {[%emt 00:00:31]} 4. e3 {[%clk 00:45:38]} {[%emt 00:00:02]} Bd6
{[%clk 00:45:09]} {[%emt 00:00:04]} 5. Bg3 {[%clk 00:45:36]} {[%emt 00:00:12]}
c5 {[%clk 00:45:05]} {[%emt 00:00:13]} 6. c3 {[%clk 00:45:45]} {[%emt
00:00:02]} Nc6 {[%clk 00:45:11]} {[%emt 00:00:04]} 7. Bd3 {[%clk 00:45:45]}
{[%emt 00:00:10]} O-O {[%clk 00:44:55]} {[%emt 00:00:26]} 8. Nbd2 {[%clk
00:45:40]} {[%emt 00:00:15]} Re8 {[%clk 00:44:59]} {[%emt 00:00:05]} 9. Ne5
{[%clk 00:45:29]} {[%emt 00:00:21]} Bxe5 {[%clk 00:41:02]} {[%emt 00:04:07]} 10.
dxe5 {[%clk 00:45:11]} {[%emt 00:00:29]} Nd7 {[%clk 00:41:08]} {[%emt
00:00:03]} 11. f4 {[%clk 00:44:34]} {[%emt 00:00:47]} c4 {[%clk 00:40:45]}
{[%emt 00:00:33]} 12. Bc2 {[%clk 00:40:15]} {[%emt 00:04:29]} Qb6 {[%clk
00:40:31]} {[%emt 00:00:24]} 13. O-O {[%clk 00:39:35]} {[%emt 00:00:50]} Qxb2
{[%clk 00:35:34]} {[%emt 00:05:07]} 14. Nf3 {[%clk 00:38:53]} {[%emt 00:00:49]}
f5 {[%clk 00:22:32]} {[%emt 00:13:15]} 15. Ng5 {[%clk 00:36:36]} {[%emt
00:02:27]} Nf8 {[%clk 00:14:29]} {[%emt 00:08:12]} 16. Qd2 {[%clk 00:34:50]}
{[%emt 00:01:57]} Rb8 {[%clk 00:13:48]} {[%emt 00:00:50]} 17. Bf2 {[%clk
00:33:39]} {[%emt 00:01:23]} Qa3 {[%clk 00:12:07]} {[%emt 00:01:50]} 18. g4
{[%clk 00:26:22]} {[%emt 00:07:27]} fxg4 {[%clk 00:08:10]} {[%emt 00:04:07]} 19.
e4 {[%clk 00:24:37]} {[%emt 00:01:55]} Qa5 {[%clk 00:05:36]} {[%emt 00:02:44]}
20. f5 {[%clk 00:16:41]} {[%emt 00:08:07]} h6 {[%clk 00:03:30]} {[%emt
00:02:16]} 21. f6 {[%clk 00:15:37]} {[%emt 00:01:14]} Nxe5 {[%clk 00:00:25]}
{[%emt 00:03:15]} 22. f7+ {[%clk 00:12:22]} {[%emt 00:03:24]} Nxf7 {[%clk
00:00:33]} {[%emt 00:00:02]} 23. Nxf7 {[%clk 00:12:31]} Re7 {[%clk 00:00:31]}
{[%emt 00:00:12]} 24. Ne5 {[%clk 00:12:27]} {[%emt 00:00:15]} dxe4 {[%clk
00:00:39]} {[%emt 00:00:02]} 25. Qf4 {[%clk 00:12:31]} {[%emt 00:00:06]} Ra8
{[%clk 00:00:32]} {[%emt 00:00:17]} 26. Qxf8+ {[%clk 00:12:07]} {[%emt
00:00:33]} Kxf8 {[%clk 00:00:41]} {[%emt 00:00:02]} 27. Bb6+ {[%clk 00:12:15]}
{[%emt 00:00:02]} Kg8 {[%clk 00:00:15]} {[%emt 00:00:35]} 28. Bxa5 {[%clk
00:12:23]} {[%emt 00:00:02]} b6 {[%clk 00:00:11]} {[%emt 00:00:15]} 29. Bb4
{[%clk 00:12:29]} {[%emt 00:00:04]} Rc7 {[%clk 00:00:18]} {[%emt 00:00:02]} 30.
Rf8+ {[%clk 00:12:34]} {[%emt 00:00:06]} Kh7 {[%clk 00:00:26]} {[%emt
00:00:03]} 31. Bxe4+ {[%clk 00:12:41]} {[%emt 00:00:02]} g6 {[%clk 00:00:32]}
{[%emt 00:00:04]} 32. Bxa8 {[%clk 00:12:47]} {[%emt 00:00:04]} 1-0

[Event "FIDE U16 Olympiad_boards_1-80"]
[Site "Eindhoven, Netherlands"]
[Date "2023.08.14"]
[Round "3.71"]
[White "Boshoma, Chisomo"]
[Black "Mikko, Rondo"]
[Result "0-1"]
[TimeControl "2700+10"]
[WhiteElo "1668"]
[BlackElo "2169"]

1. e4 {[%clk 00:45:19]} e5 {[%clk 00:45:18]} {[%emt 00:00:02]} 2. Nf3 {[%clk
00:45:27]} {[%emt 00:00:02]} Nc6 {[%clk 00:45:26]} {[%emt 00:00:02]} 3. Bb5
{[%clk 00:45:36]} {[%emt 00:00:02]} a6 {[%clk 00:45:30]} {[%emt 00:00:06]} 4.
Ba4 {[%clk 00:45:44]} {[%emt 00:00:02]} d6 {[%clk 00:45:33]} {[%emt 00:00:07]}
5. c3 {[%clk 00:45:42]} {[%emt 00:00:12]} Bd7 {[%clk 00:45:40]} {[%emt
00:00:03]} 6. O-O {[%clk 00:45:45]} {[%emt 00:00:07]} g6 {[%clk 00:45:40]}
{[%emt 00:00:10]} 7. d4 {[%clk 00:41:39]} {[%emt 00:04:16]} Bg7 {[%clk
00:45:48]} {[%emt 00:00:02]} 8. d5 {[%clk 00:40:52]} {[%emt 00:00:57]} Nce7
{[%clk 00:45:46]} {[%emt 00:00:11]} 9. Bc2 {[%clk 00:40:39]} {[%emt 00:00:23]}
h6 {[%clk 00:45:09]} {[%emt 00:00:47]} 10. c4 {[%clk 00:39:47]} {[%emt
00:01:03]} Nf6 {[%clk 00:35:54]} {[%emt 00:09:25]} 11. Nc3 {[%clk 00:39:22]}
{[%emt 00:00:35]} O-O {[%clk 00:35:54]} {[%emt 00:00:09]} 12. h3 {[%clk
00:38:00]} {[%emt 00:01:33]} g5 {[%clk 00:35:41]} {[%emt 00:00:23]} 13. Nh2
{[%clk 00:35:47]} {[%emt 00:02:23]} Ng6 {[%clk 00:35:29]} {[%emt 00:00:21]} 14.
Be3 {[%clk 00:33:55]} {[%emt 00:02:03]} Nf4 {[%clk 00:35:02]} {[%emt 00:00:37]}
15. Bd3 {[%clk 00:29:04]} {[%emt 00:05:02]} c5 {[%clk 00:20:55]} {[%emt
00:14:16]} 16. Be2 {[%clk 00:28:06]} {[%emt 00:01:08]} b5 {[%clk 00:19:26]}
{[%emt 00:01:40]} 17. Bxf4 {[%clk 00:24:58]} {[%emt 00:03:17]} exf4 {[%clk
00:19:32]} {[%emt 00:00:03]} 18. Qd3 {[%clk 00:21:28]} {[%emt 00:03:41]} Re8
{[%clk 00:16:28]} {[%emt 00:03:14]} 19. Bf3 {[%clk 00:19:06]} {[%emt 00:02:32]}
Qa5 {[%clk 00:15:41]} {[%emt 00:00:57]} 20. a3 {[%clk 00:18:06]} {[%emt
00:01:10]} bxc4 {[%clk 00:13:55]} {[%emt 00:01:56]} 21. Qxc4 {[%clk 00:18:14]}
{[%emt 00:00:02]} Bb5 {[%clk 00:13:55]} {[%emt 00:00:10]} 22. Nxb5 {[%clk
00:18:11]} {[%emt 00:00:13]} Qxb5 {[%clk 00:09:44]} {[%emt 00:04:21]} 23. Qxb5
{[%clk 00:12:48]} {[%emt 00:05:33]} axb5 {[%clk 00:09:52]} {[%emt 00:00:01]} 24.
Rfe1 {[%clk 00:12:56]} {[%emt 00:00:03]} Nd7 {[%clk 00:08:48]} {[%emt
00:01:13]} 25. Rab1 {[%clk 00:12:37]} {[%emt 00:00:29]} c4 {[%clk 00:08:44]}
{[%emt 00:00:14]} 26. Ng4 {[%clk 00:09:49]} {[%emt 00:02:58]} Nc5 {[%clk
00:08:23]} {[%emt 00:00:31]} 27. Re2 {[%clk 00:08:24]} {[%emt 00:01:35]} Na4
{[%clk 00:06:38]} {[%emt 00:01:55]} 28. e5 {[%clk 00:03:49]} {[%emt 00:04:45]}
dxe5 {[%clk 00:02:23]} {[%emt 00:04:25]} 29. d6 {[%clk 00:03:59]} Rad8 {[%clk
00:01:56]} {[%emt 00:00:38]} 30. Bc6 {[%clk 00:04:07]} {[%emt 00:00:01]} Re6
{[%clk 00:01:28]} {[%emt 00:00:38]} 31. Bxb5 {[%clk 00:04:15]} {[%emt
00:00:02]} Nb6 {[%clk 00:01:34]} {[%emt 00:00:03]} 32. d7 {[%clk 00:02:48]}
{[%emt 00:01:38]} f5 {[%clk 00:00:31]} {[%emt 00:01:13]} 33. Nh2 {[%clk
00:02:54]} {[%emt 00:00:03]} e4 {[%clk 00:00:39]} {[%emt 00:00:03]} 34. a4
{[%clk 00:02:12]} {[%emt 00:00:52]} Kf8 {[%clk 00:00:13]} {[%emt 00:00:36]} 35.
Rc1 {[%clk 00:01:57]} {[%emt 00:00:25]} Rd6 {[%clk 00:00:19]} {[%emt 00:00:04]}
36. a5 {[%clk 00:01:48]} {[%emt 00:00:19]} Nxd7 {[%clk 00:00:18]} {[%emt
00:00:10]} 37. Rxc4 {[%clk 00:00:43]} {[%emt 00:01:15]} Ne5 {[%clk 00:00:19]}
{[%emt 00:00:10]} 38. Rcc2 {[%clk 00:00:35]} {[%emt 00:00:18]} Rd5 {[%clk
00:00:22]} {[%emt 00:00:06]} 39. Bc4 {[%clk 00:00:15]} {[%emt 00:00:31]} Rxa5
{[%clk 00:00:20]} {[%emt 00:00:12]} 40. b4 {[%clk 00:00:24]} Ra1+ {[%clk
00:00:18]} {[%emt 00:00:12]} 41. Nf1 {[%clk 00:00:31]} {[%emt 00:00:03]} Rdd1
{[%clk 00:00:19]} {[%emt 00:00:08]} 42. Red2 {[%clk 00:00:41]} Rxd2 {[%clk
00:00:28]} {[%emt 00:00:01]} 43. Rxd2 {[%clk 00:00:50]} Nxc4 {[%clk 00:00:36]}
{[%emt 00:00:02]} 44. Rd8+ {[%clk 00:00:59]} Ke7 {[%clk 00:00:44]} {[%emt
00:00:02]} 45. Rc8 {[%clk 00:01:07]} {[%emt 00:00:02]} Nd2 {[%clk 00:00:52]}
{[%emt 00:00:01]} 46. Rc7+ {[%clk 00:01:17]} {[%emt 00:00:01]} Kf6 {[%clk
00:00:49]} {[%emt 00:00:13]} 47. b5 {[%clk 00:01:24]} {[%emt 00:00:03]} Nxf1
{[%clk 00:00:48]} {[%emt 00:00:11]} 48. b6 {[%clk 00:01:29]} {[%emt 00:00:05]}
Ng3+ {[%clk 00:00:55]} {[%emt 00:00:02]} 49. Kh2 {[%clk 00:01:38]} {[%emt
00:00:01]} Rh1# {[%clk 00:01:04]} {[%emt 00:00:02]} 0-1

[Event "FIDE U16 Olympiad_boards_1-80"]
[Site "Eindhoven, Netherlands"]
[Date "2023.08.14"]
[Round "3.72"]
[White "Pool, Linda Maria"]
[Black "Yan, Weilun"]
[Result "0-1"]
[TimeControl "2700+10"]
[WhiteElo "1428"]
[BlackElo "1390"]

1. d4 {[%clk 00:45:18]} {[%emt 00:00:02]} d5 {[%clk 00:45:19]} {[%emt
00:00:02]} 2. Nf3 {[%clk 00:45:25]} {[%emt 00:00:02]} Nf6 {[%clk 00:45:27]}
{[%emt 00:00:01]} 3. e3 {[%clk 00:45:33]} {[%emt 00:00:03]} c5 {[%clk
00:45:34]} {[%emt 00:00:03]} 4. Bd3 {[%clk 00:45:11]} {[%emt 00:00:32]} Nc6
{[%clk 00:45:38]} {[%emt 00:00:06]} 5. b3 {[%clk 00:44:32]} {[%emt 00:00:49]}
cxd4 {[%clk 00:45:33]} {[%emt 00:00:14]} 6. exd4 {[%clk 00:44:37]} {[%emt
00:00:06]} Bg4 {[%clk 00:45:19]} {[%emt 00:00:24]} 7. Bb2 {[%clk 00:44:19]}
{[%emt 00:00:29]} Qa5+ {[%clk 00:43:00]} {[%emt 00:02:29]} 8. Nbd2 {[%clk
00:40:25]} {[%emt 00:04:04]} Nb4 {[%clk 00:42:49]} {[%emt 00:00:20]} 9. Be2
{[%clk 00:39:14]} {[%emt 00:01:20]} Bxf3 {[%clk 00:41:29]} {[%emt 00:01:31]} 10.
Bxf3 {[%clk 00:38:47]} {[%emt 00:00:38]} Qc7 {[%clk 00:40:53]} {[%emt
00:00:45]} 11. a3 {[%clk 00:38:06]} {[%emt 00:00:52]} Nxc2+ {[%clk 00:40:56]}
{[%emt 00:00:07]} 12. Kf1 {[%clk 00:36:15]} {[%emt 00:02:00]} Nxa1 {[%clk
00:40:58]} {[%emt 00:00:07]} 13. Bxa1 {[%clk 00:35:29]} {[%emt 00:00:57]} Rc8
{[%clk 00:40:41]} {[%emt 00:00:27]} 14. g3 {[%clk 00:27:37]} {[%emt 00:08:02]}
Qc1 {[%clk 00:40:16]} {[%emt 00:00:34]} 15. Kg2 {[%clk 00:27:18]} Qxd1 {[%clk
00:40:23]} {[%emt 00:00:34]} 16. Rxd1 {[%clk 00:27:22]} e6 {[%clk 00:40:26]}
{[%emt 00:00:12]} 17. b4 {[%clk 00:26:31]} Bd6 {[%clk 00:38:39]} {[%emt
00:02:58]} 18. Nb3 {[%clk 00:26:19]} b6 {[%clk 00:38:45]} {[%emt 00:00:26]} 19.
Bb2 {[%clk 00:25:02]} Rc2 {[%clk 00:38:45]} 0-1

[Event "FIDE U16 Olympiad_boards_1-80"]
[Site "Eindhoven, Netherlands"]
[Date "2023.08.14"]
[Round "3.73"]
[White "Hobson, Kenneth"]
[Black "Pusara, Mihailo"]
[Result "1-0"]
[TimeControl "2700+10"]
[WhiteElo "1851"]
[BlackElo "1873"]

1. e4 {[%clk 00:45:19]} e5 {[%clk 00:45:19]} {[%emt 00:00:02]} 2. Nf3 {[%clk
00:45:25]} {[%emt 00:00:04]} Nf6 {[%clk 00:45:27]} {[%emt 00:00:02]} 3. Nxe5
{[%clk 00:45:07]} {[%emt 00:00:28]} d6 {[%clk 00:45:35]} {[%emt 00:00:02]} 4.
Nc4 {[%clk 00:45:01]} {[%emt 00:00:15]} Nxe4 {[%clk 00:44:34]} {[%emt
00:01:12]} 5. Qe2 {[%clk 00:44:58]} {[%emt 00:00:13]} Qe7 {[%clk 00:44:15]}
{[%emt 00:00:29]} 6. Ne3 {[%clk 00:44:52]} {[%emt 00:00:16]} Be6 {[%clk
00:39:53]} {[%emt 00:04:32]} 7. c4 {[%clk 00:43:13]} {[%emt 00:01:49]} Nc6
{[%clk 00:39:19]} {[%emt 00:00:44]} 8. Nc3 {[%clk 00:42:04]} {[%emt 00:01:19]}
Nxc3 {[%clk 00:34:24]} {[%emt 00:05:05]} 9. dxc3 {[%clk 00:42:01]} {[%emt
00:00:14]} O-O-O {[%clk 00:33:02]} {[%emt 00:01:31]} 10. Bd2 {[%clk 00:41:08]}
{[%emt 00:01:03]} f5 {[%clk 00:30:59]} {[%emt 00:02:14]} 11. O-O-O {[%clk
00:40:38]} {[%emt 00:00:38]} Ne5 {[%clk 00:30:03]} {[%emt 00:01:07]} 12. f4
{[%clk 00:38:46]} {[%emt 00:02:01]} Nd7 {[%clk 00:29:36]} {[%emt 00:00:38]} 13.
g3 {[%clk 00:37:11]} {[%emt 00:01:46]} g6 {[%clk 00:28:31]} {[%emt 00:01:15]}
14. Bg2 {[%clk 00:36:18]} {[%emt 00:01:03]} Nb6 {[%clk 00:27:07]} {[%emt
00:01:34]} 15. Rhe1 {[%clk 00:35:50]} {[%emt 00:00:37]} Qf7 {[%clk 00:26:47]}
{[%emt 00:00:29]} 16. b3 {[%clk 00:33:09]} {[%emt 00:02:51]} Bg7 {[%clk
00:26:36]} {[%emt 00:00:21]} 17. Qd3 {[%clk 00:30:51]} {[%emt 00:02:29]} Rhe8
{[%clk 00:25:59]} {[%emt 00:00:48]} 18. Nd5 {[%clk 00:30:23]} {[%emt 00:00:38]}
Bxd5 {[%clk 00:25:20]} {[%emt 00:00:49]} 19. cxd5 {[%clk 00:30:08]} {[%emt
00:00:24]} Nd7 {[%clk 00:24:26]} {[%emt 00:01:04]} 20. Be3 {[%clk 00:26:08]}
{[%emt 00:04:10]} Kb8 {[%clk 00:22:12]} {[%emt 00:02:23]} 21. Kc2 {[%clk
00:25:00]} {[%emt 00:01:19]} Re7 {[%clk 00:21:18]} {[%emt 00:01:04]} 22. Re2
{[%clk 00:21:23]} {[%emt 00:03:47]} Rde8 {[%clk 00:19:36]} {[%emt 00:01:52]} 23.
Rde1 {[%clk 00:21:30]} {[%emt 00:00:03]} Nc5 {[%clk 00:18:49]} {[%emt
00:00:56]} 24. Bxc5 {[%clk 00:21:06]} {[%emt 00:00:35]} Rxe2+ {[%clk 00:18:54]}
{[%emt 00:00:04]} 25. Rxe2 {[%clk 00:21:13]} {[%emt 00:00:04]} Rxe2+ {[%clk
00:19:02]} {[%emt 00:00:02]} 26. Qxe2 {[%clk 00:21:22]} {[%emt 00:00:01]} dxc5
{[%clk 00:19:10]} {[%emt 00:00:02]} 27. Qe3 {[%clk 00:19:39]} {[%emt 00:01:52]}
b6 {[%clk 00:16:42]} {[%emt 00:02:39]} 28. Qf3 {[%clk 00:18:21]} {[%emt
00:01:28]} Qe7 {[%clk 00:04:25]} {[%emt 00:12:27]} 29. d6 {[%clk 00:18:05]}
{[%emt 00:00:27]} cxd6 {[%clk 00:04:33]} {[%emt 00:00:01]} 30. Qa8+ {[%clk
00:17:51]} {[%emt 00:00:24]} Kc7 {[%clk 00:04:42]} {[%emt 00:00:01]} 31. Qxa7+
{[%clk 00:16:48]} {[%emt 00:01:14]} Kd8 {[%clk 00:04:50]} 32. Qxb6+ {[%clk
00:16:07]} {[%emt 00:00:51]} Qc7 {[%clk 00:03:26]} {[%emt 00:01:34]} 33. Qa6
{[%clk 00:14:01]} {[%emt 00:02:17]} Ke8 {[%clk 00:01:09]} {[%emt 00:02:26]} 34.
Bd5 {[%clk 00:12:19]} {[%emt 00:01:52]} Qe7 {[%clk 00:00:47]} {[%emt 00:00:32]}
35. Qb5+ {[%clk 00:11:26]} {[%emt 00:01:03]} Kd8 {[%clk 00:00:25]} {[%emt
00:00:32]} 36. Qb8+ {[%clk 00:08:26]} {[%emt 00:03:09]} Kd7 {[%clk 00:00:34]}
{[%emt 00:00:01]} 37. Qb7+ {[%clk 00:07:50]} {[%emt 00:00:47]} Kd8 {[%clk
00:00:36]} {[%emt 00:00:08]} 38. Qa8+ {[%clk 00:07:16]} {[%emt 00:00:44]} Kc7
{[%clk 00:00:30]} {[%emt 00:00:16]} 39. Qa6 {[%clk 00:06:18]} {[%emt 00:01:09]}
Qf6 {[%clk 00:00:23]} {[%emt 00:00:16]} 40. Qd3 {[%clk 00:05:57]} {[%emt
00:00:31]} Qe7 {[%clk 00:00:19]} {[%emt 00:00:14]} 41. Kd2 {[%clk 00:05:38]}
{[%emt 00:00:29]} Kb6 {[%clk 00:00:12]} {[%emt 00:00:17]} 42. a4 {[%clk
00:05:44]} {[%emt 00:00:04]} Qe8 {[%clk 00:00:20]} {[%emt 00:00:02]} 43. Bf3
{[%clk 00:05:31]} {[%emt 00:00:22]} Qd7 {[%clk 00:00:17]} {[%emt 00:00:14]} 44.
Qd5 {[%clk 00:05:29]} {[%emt 00:00:13]} h6 {[%clk 00:00:16]} {[%emt 00:00:10]}
45. Qa8 {[%clk 00:05:11]} {[%emt 00:00:28]} Qc7 {[%clk 00:00:17]} {[%emt
00:00:08]} 46. a5+ {[%clk 00:05:03]} {[%emt 00:00:19]} Kb5 {[%clk 00:00:23]}
{[%emt 00:00:04]} 47. Be2+ {[%clk 00:05:10]} {[%emt 00:00:03]} c4 {[%clk
00:00:24]} {[%emt 00:00:08]} 48. Bxc4+ {[%clk 00:05:18]} {[%emt 00:00:02]} Kc5
{[%clk 00:00:24]} {[%emt 00:00:10]} 49. Qd5# {[%clk 00:05:26]} {[%emt
00:00:02]} 1-0